[Event "*** Titled Tuesday 3|2 Blitz (Early)"]
[Site "Chess.com"]
[Date "2016.12.06"]
[Round "5"]
[White "Noukii"]
[Black "ftorodent"]
[Result "1-0"]
[WhiteElo "2668"]
[BlackElo "2501"]
[TimeControl "180+2"]
[EndTime "12:05:12 PST"]
[Termination "Noukii won by resignation"]

1. d4 {[%clk 0:03:01.9]} 1... d5 {[%clk 0:03:00.2]} 2. Nf3 {[%clk 0:03:02.6]}
2... Nf6 {[%clk 0:03:00.3]} 3. c4 {[%clk 0:03:04]} 3... e6 {[%clk 0:03:01.4]} 4.
g3 {[%clk 0:03:02.2]} 4... Be7 {[%clk 0:03:01.7]} 5. Bg2 {[%clk 0:03:03.7]} 5...
O-O {[%clk 0:03:02.5]} 6. O-O {[%clk 0:03:05.4]} 6... dxc4 {[%clk 0:03:03.4]} 7.
Qc2 {[%clk 0:03:04.1]} 7... a6 {[%clk 0:03:03.8]} 8. a4 {[%clk 0:03:05.1]} 8...
Bd7 {[%clk 0:03:03.6]} 9. Qxc4 {[%clk 0:03:06]} 9... Bc6 {[%clk 0:03:04.6]} 10.
Bg5 {[%clk 0:03:07.2]} 10... a5 {[%clk 0:03:03.6]} 11. Nc3 {[%clk 0:03:06.6]}
11... Na6 {[%clk 0:02:51.1]} 12. Rad1 {[%clk 0:03:07.1]} 12... Nb4 {[%clk
0:02:49.8]} 13. Bxf6 {[%clk 0:03:00.5]} 13... Bxf6 {[%clk 0:02:50.4]} 14. e4
{[%clk 0:03:02.1]} 14... b6 {[%clk 0:02:50.5]} 15. Qe2 {[%clk 0:02:59.3]} 15...
Bb7 {[%clk 0:02:48.3]} 16. Rfe1 {[%clk 0:03:00]} 16... Qd7 {[%clk 0:02:44.8]}
17. h4 {[%clk 0:02:51.3]} 17... h6 {[%clk 0:02:44.1]} 18. Rd2 {[%clk 0:02:49.6]}
18... Rfd8 {[%clk 0:02:36.4]} 19. Red1 {[%clk 0:02:50.2]} 19... Ba6 {[%clk
0:02:36.1]} 20. Qe3 {[%clk 0:02:50.5]} 20... Bc4 {[%clk 0:02:36.8]} 21. Qf4
{[%clk 0:02:47.2]} 21... Bb3 {[%clk 0:02:30.1]} 22. Rc1 {[%clk 0:02:46.3]} 22...
Rac8 {[%clk 0:02:15]} 23. g4 {[%clk 0:02:47.1]} 23... Be7 {[%clk 0:01:57.4]} 24.
g5 {[%clk 0:02:43.7]} 24... hxg5 {[%clk 0:01:34.8]} 25. hxg5 {[%clk 0:02:41.8]}
25... g6 {[%clk 0:01:35.9]} 26. Ne5 {[%clk 0:02:27.3]} 26... Bd6 {[%clk
0:01:11.5]} 27. Bf1 {[%clk 0:02:05.7]} 27... Qe7 {[%clk 0:01:06.1]} 28. Nb5
{[%clk 0:01:54]} 28... Kg7 {[%clk 0:00:52.8]} 29. Nxd6 {[%clk 0:01:47.7]} 29...
cxd6 {[%clk 0:00:53.2]} 30. Rxc8 {[%clk 0:01:49.3]} 30... Rxc8 {[%clk
0:00:51.5]} 31. Ng4 {[%clk 0:01:49.4]} 31... Rc1 {[%clk 0:00:46.6]} 32. Kg2
{[%clk 0:01:45.7]} 32... Bxa4 {[%clk 0:00:41.5]} 33. Nf6 {[%clk 0:01:42.6]}
33... Rc8 {[%clk 0:00:38]} 34. Re2 {[%clk 0:01:34]} 34... e5 {[%clk 0:00:38.3]}
35. Qg4 {[%clk 0:01:26.9]} 35... Rh8 {[%clk 0:00:39.1]} 36. Re3 {[%clk
0:01:24.2]} 36... exd4 {[%clk 0:00:32.2]} 37. Rh3 {[%clk 0:01:24.5]} 37... Qf8
{[%clk 0:00:32.8]} 38. Qf3 {[%clk 0:01:15.2]} 38... Bc6 {[%clk 0:00:25.5]} 39.
Ne8+ {[%clk 0:01:08.9]} 39... Kg8 {[%clk 0:00:22.9]} 40. Nf6+ {[%clk 0:01:07.9]}
40... Kg7 {[%clk 0:00:23.6]} 41. Nd7 {[%clk 0:00:48.5]} 41... Qe7 {[%clk
0:00:17.3]} 42. Rxh8 {[%clk 0:00:46.4]} 42... Qxg5+ {[%clk 0:00:18.1]} 43. Kh2
{[%clk 0:00:38.9]} 43... Kxh8 {[%clk 0:00:17.5]} 44. Qxf7 {[%clk 0:00:40.4]}
44... Qh4+ {[%clk 0:00:18.2]} 45. Bh3 {[%clk 0:00:38.8]} 45... Bxd7 {[%clk
0:00:18.2]} 46. Qxd7 {[%clk 0:00:38.7]} 46... Qxf2+ {[%clk 0:00:19]} 47. Bg2
{[%clk 0:00:40.6]} 47... Qf4+ {[%clk 0:00:19.3]} 48. Kg1 {[%clk 0:00:41.8]}
48... Nd3 {[%clk 0:00:18.3]} 49. Bh3 {[%clk 0:00:35.1]} 49... Qg3+ {[%clk
0:00:17.6]} 50. Bg2 {[%clk 0:00:36.7]} 50... Qe1+ {[%clk 0:00:12.9]} 51. Kh2
{[%clk 0:00:37.2]} 51... Qh4+ {[%clk 0:00:13.7]} 52. Bh3 {[%clk 0:00:37.6]}
52... Qf4+ {[%clk 0:00:14.1]} 53. Kg1 {[%clk 0:00:37.6]} 53... Qf2+ {[%clk
0:00:14.4]} 54. Kh1 {[%clk 0:00:38.6]} 54... Qf3+ {[%clk 0:00:15.1]} 55. Bg2
{[%clk 0:00:38.7]} 55... Qh5+ {[%clk 0:00:15.6]} 56. Kg1 {[%clk 0:00:40.2]}
56... Qd1+ {[%clk 0:00:16.4]} 57. Kh2 {[%clk 0:00:41.8]} 57... Qh5+ {[%clk
0:00:17.4]} 58. Kg1 {[%clk 0:00:43.4]} 58... Qe5 {[%clk 0:00:18.5]} 59. Qd8+
{[%clk 0:00:42.5]} 59... Kg7 {[%clk 0:00:19]} 60. Qd7+ {[%clk 0:00:42.9]} 60...
Kh6 {[%clk 0:00:19]} 61. Qh3+ {[%clk 0:00:42.9]} 61... Kg7 {[%clk 0:00:18.1]}
62. Qxd3 {[%clk 0:00:44.5]} 62... b5 {[%clk 0:00:19.2]} 63. b3 {[%clk
0:00:38.8]} 63... a4 {[%clk 0:00:18]} 64. b4 {[%clk 0:00:38.3]} 64... g5 {[%clk
0:00:12.5]} 65. Bf1 {[%clk 0:00:38.6]} 65... Kf6 {[%clk 0:00:08.1]} 66. Kf2
{[%clk 0:00:37.3]} 66... g4 {[%clk 0:00:07.9]} 67. Be2 {[%clk 0:00:37.5]} 67...
Kg5 {[%clk 0:00:08.6]} 68. Ke1 {[%clk 0:00:34.3]} 68... Kf4 {[%clk 0:00:06.2]}
69. Qd2+ {[%clk 0:00:22.2]} 69... Kxe4 {[%clk 0:00:06.8]} 70. Kd1 {[%clk
0:00:20.3]} 70... Qf4 {[%clk 0:00:05.9]} 71. Qd3+ {[%clk 0:00:20.2]} 71... Ke5
{[%clk 0:00:06.3]} 72. Qxb5+ {[%clk 0:00:21.6]} 72... Kf6 {[%clk 0:00:06.5]} 73.
Qxa4 {[%clk 0:00:20.1]} 73... g3 {[%clk 0:00:06.8]} 74. Qc6 {[%clk 0:00:20.7]}
74... Qe5 {[%clk 0:00:03.1]} 75. Qf3+ {[%clk 0:00:21.7]} 75... Ke7 {[%clk
0:00:03.6]} 76. b5 {[%clk 0:00:22.6]} 76... d3 {[%clk 0:00:03.8]} 77. Bxd3
{[%clk 0:00:21.9]} 77... Qa1+ {[%clk 0:00:04.3]} 78. Ke2 {[%clk 0:00:23.6]}
78... Qb2+ {[%clk 0:00:05.2]} 79. Ke3 {[%clk 0:00:25.1]} 79... Qe5+ {[%clk
0:00:06.2]} 80. Qe4 {[%clk 0:00:26.4]} 80... g2 {[%clk 0:00:07.1]} 81. Qxe5+
{[%clk 0:00:27.3]} 81... dxe5 {[%clk 0:00:07.1]} 82. Kf2 {[%clk 0:00:29]} 1-0

[Event "*** Titled Tuesday 3|2 Blitz (Early)"]
[Site "Chess.com"]
[Date "2016.12.06"]
[Round "5"]
[White "Hieronymus00"]
[Black "saraswathii"]
[Result "0-1"]
[WhiteElo "2109"]
[BlackElo "2185"]
[TimeControl "180+2"]
[EndTime "12:05:25 PST"]
[Termination "saraswathii won on time"]

1. e4 {[%clk 0:03:02]} 1... c5 {[%clk 0:03:00.4]} 2. Nf3 {[%clk 0:03:02.7]} 2...
e6 {[%clk 0:03:01.3]} 3. d4 {[%clk 0:03:03.9]} 3... cxd4 {[%clk 0:03:01.8]} 4.
Nxd4 {[%clk 0:03:05.8]} 4... Nf6 {[%clk 0:03:03.2]} 5. Nc3 {[%clk 0:03:06.2]}
5... Nc6 {[%clk 0:03:04.7]} 6. Ndb5 {[%clk 0:02:54.6]} 6... Bb4 {[%clk
0:03:04.7]} 7. a3 {[%clk 0:02:55.3]} 7... Bxc3+ {[%clk 0:03:04.8]} 8. Nxc3
{[%clk 0:02:56.8]} 8... d5 {[%clk 0:03:05.4]} 9. Bd3 {[%clk 0:02:29.2]} 9... d4
{[%clk 0:03:04.5]} 10. Ne2 {[%clk 0:02:28.4]} 10... e5 {[%clk 0:03:05.5]} 11.
Ng3 {[%clk 0:02:28.5]} 11... O-O {[%clk 0:03:04.7]} 12. O-O {[%clk 0:02:26.6]}
12... Ne7 {[%clk 0:02:57.6]} 13. f4 {[%clk 0:02:18.6]} 13... exf4 {[%clk
0:02:57.1]} 14. Bxf4 {[%clk 0:02:18]} 14... Ng6 {[%clk 0:02:57.1]} 15. Bg5
{[%clk 0:02:14]} 15... Ne5 {[%clk 0:02:43.8]} 16. Qd2 {[%clk 0:01:47.6]} 16...
Neg4 {[%clk 0:02:35.9]} 17. e5 {[%clk 0:01:36.4]} 17... h6 {[%clk 0:02:28]} 18.
exf6 {[%clk 0:01:25.3]} 18... hxg5 {[%clk 0:02:26]} 19. Qxg5 {[%clk 0:01:16.9]}
19... Nxf6 {[%clk 0:02:25.3]} 20. Qh4 {[%clk 0:00:58.9]} 20... Re8 {[%clk
0:02:18.3]} 21. Rae1 {[%clk 0:00:52.2]} 21... Be6 {[%clk 0:02:13.3]} 22. Rf2
{[%clk 0:00:29.1]} 22... Rc8 {[%clk 0:01:47.9]} 23. Ref1 {[%clk 0:00:27.4]}
23... Bc4 {[%clk 0:01:41.3]} 24. Rxf6 {[%clk 0:00:19.2]} 24... Bxd3 {[%clk
0:01:40.6]} 25. cxd3 {[%clk 0:00:19.7]} 25... gxf6 {[%clk 0:01:32]} 26. Nh5
{[%clk 0:00:19.8]} 26... Re6 {[%clk 0:01:22.8]} 27. Qg4+ {[%clk 0:00:17.7]}
27... Kf8 {[%clk 0:01:23.3]} 28. Qg7+ {[%clk 0:00:18]} 28... Ke7 {[%clk
0:01:23.7]} 29. Nxf6 {[%clk 0:00:17.5]} 29... Rc7 {[%clk 0:00:56.2]} 30. Ne4
{[%clk 0:00:16.2]} 30... Qe8 {[%clk 0:00:40.2]} 31. Qxd4 {[%clk 0:00:10.4]}
31... b6 {[%clk 0:00:29.6]} 32. Ng5 {[%clk 0:00:10.8]} 32... Re2 {[%clk
0:00:23.4]} 33. h3 {[%clk 0:00:07.3]} 33... f5 {[%clk 0:00:18.7]} 34. Rxf5
{[%clk 0:00:06.7]} 34... Rc1+ {[%clk 0:00:19.4]} 35. Kh2 {[%clk 0:00:07.8]}
35... Qb8+ {[%clk 0:00:20.6]} 36. Rf4 {[%clk 0:00:06]} 36... Rf1 {[%clk
0:00:21]} 37. Qf6+ {[%clk 0:00:06.6]} 37... Kd7 {[%clk 0:00:21.1]} 38. Qf7+
{[%clk 0:00:07.3]} 38... Kc6 {[%clk 0:00:22.6]} 39. Qf6+ {[%clk 0:00:08]} 39...
Kb7 {[%clk 0:00:23.6]} 40. Nf3 {[%clk 0:00:07.7]} 40... Qg8 {[%clk 0:00:21.9]}
41. Qf7+ {[%clk 0:00:07.7]} 41... Qxf7 {[%clk 0:00:22.7]} 42. Rxf7+ {[%clk
0:00:09.6]} 42... Ka6 {[%clk 0:00:24.4]} 43. Kg3 {[%clk 0:00:10.1]} 43... Rxb2
{[%clk 0:00:25.5]} 44. h4 {[%clk 0:00:10.7]} 44... Rff2 {[%clk 0:00:26.9]} 45.
h5 {[%clk 0:00:10.2]} 45... Rxg2+ {[%clk 0:00:28.3]} 46. Kf4 {[%clk 0:00:11.6]}
46... Rgf2 {[%clk 0:00:28.9]} 47. h6 {[%clk 0:00:12.4]} 47... Rb5 {[%clk
0:00:28.2]} 48. h7 {[%clk 0:00:12.8]} 48... Rh5 {[%clk 0:00:29.2]} 49. Ke3
{[%clk 0:00:13.1]} 49... Rf1 {[%clk 0:00:29.3]} 50. Kf4 {[%clk 0:00:11.7]} 50...
Rh3 {[%clk 0:00:27.5]} 51. Kg4 {[%clk 0:00:12.7]} 51... Rhh1 {[%clk 0:00:26.3]}
52. Rg7 {[%clk 0:00:11.2]} 52... Rd1 {[%clk 0:00:20.5]} 53. Ng5 {[%clk
0:00:11.5]} 53... Rxd3 {[%clk 0:00:21.2]} 54. Rg8 {[%clk 0:00:12.2]} 54... Rd4+
{[%clk 0:00:16.5]} 55. Kf5 {[%clk 0:00:13.1]} 55... Rdh4 {[%clk 0:00:17.6]} 56.
Kg6 {[%clk 0:00:13.1]} 56... Rh6+ {[%clk 0:00:17.2]} 57. Kg7 {[%clk 0:00:14.2]}
57... R6h5 {[%clk 0:00:18.6]} 58. Kg6 {[%clk 0:00:11.8]} 58... Rxg5+ {[%clk
0:00:19.7]} 59. Kxg5 {[%clk 0:00:12.7]} 59... Rxh7 {[%clk 0:00:21.6]} 60. Kf4
{[%clk 0:00:13.8]} 60... Rh3 {[%clk 0:00:22.5]} 61. a4 {[%clk 0:00:13]} 61...
Ra3 {[%clk 0:00:23.6]} 62. Ke5 {[%clk 0:00:12.6]} 62... Rxa4 {[%clk 0:00:24.8]}
63. Kd6 {[%clk 0:00:13.9]} 63... Rc4 {[%clk 0:00:25.9]} 64. Kd5 {[%clk
0:00:14.3]} 64... Rc1 {[%clk 0:00:26.8]} 65. Kd4 {[%clk 0:00:15.3]} 65... Kb5
{[%clk 0:00:28]} 66. Rg5+ {[%clk 0:00:15.7]} 66... Rc5 {[%clk 0:00:28.2]} 67.
Rg2 {[%clk 0:00:15.6]} 67... a5 {[%clk 0:00:29.4]} 68. Rb2+ {[%clk 0:00:15.9]}
68... Ka6 {[%clk 0:00:30.1]} 69. Rg2 {[%clk 0:00:17]} 69... a4 {[%clk
0:00:31.5]} 70. Rh2 {[%clk 0:00:16.3]} 70... Ka5 {[%clk 0:00:31.9]} 71. Rh8
{[%clk 0:00:13.9]} 71... Rc7 {[%clk 0:00:31.4]} 72. Rh3 {[%clk 0:00:11.9]} 72...
Kb4 {[%clk 0:00:31.9]} 73. Rh1 {[%clk 0:00:12.1]} 73... b5 {[%clk 0:00:24.3]}
74. Rb1+ {[%clk 0:00:09.8]} 74... Ka5 {[%clk 0:00:25.6]} 75. Kd3 {[%clk
0:00:09.6]} 75... a3 {[%clk 0:00:26]} 76. Ra1 {[%clk 0:00:09.2]} 76... Ka4
{[%clk 0:00:26.7]} 77. Rh1 {[%clk 0:00:05.9]} 77... a2 {[%clk 0:00:25.5]} 78.
Rh4+ {[%clk 0:00:04.5]} 78... b4 {[%clk 0:00:26]} 79. Rh8 {[%clk 0:00:04.9]}
79... Rc3+ {[%clk 0:00:21.4]} 80. Kd2 {[%clk 0:00:05]} 80... Ra3 {[%clk
0:00:22.1]} 81. Ra8+ {[%clk 0:00:02.6]} 81... Kb3 {[%clk 0:00:23]} 0-1

[Event "*** Titled Tuesday 3|2 Blitz (Early)"]
[Site "Chess.com"]
[Date "2016.12.06"]
[Round "5"]
[White "Tash_Boy"]
[Black "Schemato"]
[Result "1/2-1/2"]
[WhiteElo "2469"]
[BlackElo "2307"]
[TimeControl "180+2"]
[EndTime "12:09:58 PST"]
[Termination "Game drawn by agreement"]

1. e4 {[%clk 0:02:57.9]} 1... e6 {[%clk 0:03:00.8]} 2. d4 {[%clk 0:02:57.8]}
2... d5 {[%clk 0:03:02.1]} 3. Nc3 {[%clk 0:02:59.4]} 3... Nf6 {[%clk 0:03:03.2]}
4. exd5 {[%clk 0:02:58.2]} 4... exd5 {[%clk 0:03:01.2]} 5. Bd3 {[%clk
0:02:55.4]} 5... c6 {[%clk 0:03:01.1]} 6. Bg5 {[%clk 0:02:55.2]} 6... Be7 {[%clk
0:03:01.3]} 7. Qf3 {[%clk 0:02:53.6]} 7... Bg4 {[%clk 0:02:53.7]} 8. Qg3 {[%clk
0:02:52.8]} 8... Bh5 {[%clk 0:02:54.7]} 9. Nge2 {[%clk 0:02:44.6]} 9... Bg6
{[%clk 0:02:54.1]} 10. Bxg6 {[%clk 0:02:42]} 10... hxg6 {[%clk 0:02:54.8]} 11.
O-O-O {[%clk 0:02:34.8]} 11... Nh5 {[%clk 0:02:32.8]} 12. Qe3 {[%clk 0:02:34.2]}
12... Nd7 {[%clk 0:02:16.8]} 13. Ng3 {[%clk 0:02:29.4]} 13... Kf8 {[%clk
0:02:05.7]} 14. h4 {[%clk 0:02:18.8]} 14... Nxg3 {[%clk 0:02:01.5]} 15. Qxg3
{[%clk 0:02:15]} 15... Rh5 {[%clk 0:01:41.3]} 16. Kb1 {[%clk 0:02:01.5]} 16...
Kg8 {[%clk 0:01:30.2]} 17. Bf4 {[%clk 0:01:41.9]} 17... Bxh4 {[%clk 0:01:22.3]}
18. Qf3 {[%clk 0:01:42.2]} 18... Qf6 {[%clk 0:01:09.2]} 19. g3 {[%clk 0:01:40]}
19... Bg5 {[%clk 0:01:08.7]} 20. Ne2 {[%clk 0:01:10.6]} 20... Re8 {[%clk
0:00:43.3]} 21. Rxh5 {[%clk 0:01:06.4]} 21... gxh5 {[%clk 0:00:44]} 22. Qxh5
{[%clk 0:01:06.7]} 22... Bxf4 {[%clk 0:00:42.9]} 23. Nxf4 {[%clk 0:01:07.3]}
23... Nf8 {[%clk 0:00:41.7]} 24. Rh1 {[%clk 0:01:00.6]} 24... g6 {[%clk
0:00:42.7]} 25. Qd1 {[%clk 0:00:57.9]} 25... Re4 {[%clk 0:00:41.4]} 26. c3
{[%clk 0:00:58.9]} 26... Ne6 {[%clk 0:00:37.3]} 27. Nd3 {[%clk 0:00:58.9]} 27...
Qf5 {[%clk 0:00:33.6]} 28. Ka1 {[%clk 0:00:58.3]} 28... Ng5 {[%clk 0:00:29]} 29.
f4 {[%clk 0:00:51.4]} 29... Ne6 {[%clk 0:00:23.7]} 30. Ne5 {[%clk 0:00:50]}
30... Nf8 {[%clk 0:00:15]} 31. a3 {[%clk 0:00:41.1]} 31... Nd7 {[%clk 0:00:15]}
32. Nd3 {[%clk 0:00:31.9]} 32... Qe6 {[%clk 0:00:13.5]} 33. g4 {[%clk
0:00:29.3]} 33... Re2 {[%clk 0:00:13.8]} 34. Ne5 {[%clk 0:00:28.7]} 34... Re4
{[%clk 0:00:12.9]} 35. f5 {[%clk 0:00:29.3]} 35... Qd6 {[%clk 0:00:11]} 36. Rh8+
{[%clk 0:00:28.1]} 36... Kg7 {[%clk 0:00:07.9]} 37. Qh1 {[%clk 0:00:20.6]} 37...
Nxe5 {[%clk 0:00:08.7]} 38. Qh6+ {[%clk 0:00:17.2]} 38... Kf6 {[%clk 0:00:09.3]}
39. dxe5+ {[%clk 0:00:13]} 39... Qxe5 {[%clk 0:00:09.3]} 40. Rd8 {[%clk
0:00:13.8]} 40... Rxg4 {[%clk 0:00:05.6]} 41. fxg6 {[%clk 0:00:11]} 41... Rxg6
{[%clk 0:00:04.8]} 42. Qh4+ {[%clk 0:00:12.2]} 42... Qg5 {[%clk 0:00:04.8]} 43.
Qd4+ {[%clk 0:00:13.2]} 43... Qe5 {[%clk 0:00:05.5]} 44. Qf2+ {[%clk 0:00:14.6]}
44... Qf5 {[%clk 0:00:05.1]} 45. Qd4+ {[%clk 0:00:14.2]} 45... Qe5 {[%clk
0:00:06]} 46. Rd6+ {[%clk 0:00:14.8]} 46... Kf5 {[%clk 0:00:05.6]} 47. Qf2+
{[%clk 0:00:16.3]} 47... Qf4 {[%clk 0:00:03]} 48. Qc2+ {[%clk 0:00:16.8]} 48...
Qe4 {[%clk 0:00:03.6]} 49. Qf2+ {[%clk 0:00:17.4]} 49... Qf4 {[%clk 0:00:04.7]}
50. Qc2+ {[%clk 0:00:17.9]} 50... Qe4 {[%clk 0:00:06.1]} 51. Qf2+ {[%clk
0:00:18.4]} 51... Ke5 {[%clk 0:00:07.5]} 52. Rd8 {[%clk 0:00:17.8]} 52... Rf6
{[%clk 0:00:07.4]} 53. Re8+ {[%clk 0:00:17.6]} 53... Re6 {[%clk 0:00:08.4]} 54.
Rf8 {[%clk 0:00:17.1]} 54... Kd6 {[%clk 0:00:08.7]} 55. Rxf7 {[%clk 0:00:17.4]}
55... Qe1+ {[%clk 0:00:09.6]} 56. Qxe1 {[%clk 0:00:19]} 56... Rxe1+ {[%clk
0:00:11.5]} 57. Ka2 {[%clk 0:00:20.5]} 57... Re7 {[%clk 0:00:13.1]} 58. Rf6+
{[%clk 0:00:19.2]} 58... Kc5 {[%clk 0:00:13.3]} 59. Rf2 {[%clk 0:00:20.7]} 59...
a5 {[%clk 0:00:14.4]} 60. a4 {[%clk 0:00:20.5]} 60... b5 {[%clk 0:00:14.9]} 61.
Ka3 {[%clk 0:00:21.7]} 61... Re4 {[%clk 0:00:14.2]} 62. axb5 {[%clk 0:00:21.9]}
62... cxb5 {[%clk 0:00:16.1]} 63. Kb3 {[%clk 0:00:23.3]} 63... a4+ {[%clk
0:00:16.7]} 64. Kc2 {[%clk 0:00:24.5]} 64... d4 {[%clk 0:00:15.7]} 65. Rf5+
{[%clk 0:00:25.2]} 65... Kc4 {[%clk 0:00:15.6]} 66. cxd4 {[%clk 0:00:26.2]}
66... Rxd4 {[%clk 0:00:16.5]} 67. Rh5 {[%clk 0:00:26.9]} 67... Rg4 {[%clk
0:00:17.4]} 68. Rh8 {[%clk 0:00:27.7]} 68... Rg2+ {[%clk 0:00:17.4]} 69. Kb1
{[%clk 0:00:29.2]} 69... b4 {[%clk 0:00:18.2]} 70. Rh4+ {[%clk 0:00:29.4]} 70...
Kb3 {[%clk 0:00:17.8]} 71. Rh3+ {[%clk 0:00:30.1]} 71... Kc4 {[%clk 0:00:19]}
72. Rh4+ {[%clk 0:00:31.7]} 72... Kc5 {[%clk 0:00:20.3]} 73. Rh5+ {[%clk
0:00:32.8]} 73... Kc6 {[%clk 0:00:20.3]} 74. Rh6+ {[%clk 0:00:33.9]} 74... Kc5
{[%clk 0:00:21.1]} 75. Rh5+ {[%clk 0:00:35]} 75... Kd6 {[%clk 0:00:17.4]} 76.
Rh6+ {[%clk 0:00:36]} 76... Ke5 {[%clk 0:00:16.9]} 77. Rh5+ {[%clk 0:00:36.9]}
77... Kf4 {[%clk 0:00:14.7]} 78. Rh4+ {[%clk 0:00:37.2]} 78... Rg4 {[%clk
0:00:15.3]} 79. Rh8 {[%clk 0:00:32.7]} 79... b3 {[%clk 0:00:16.2]} 80. Rh1
{[%clk 0:00:32]} 80... Ke3 {[%clk 0:00:15.4]} 81. Rh3+ {[%clk 0:00:31]} 81...
Kf2 {[%clk 0:00:15]} 82. Kc1 {[%clk 0:00:32.2]} 82... Rg1+ {[%clk 0:00:13.7]}
83. Kd2 {[%clk 0:00:33]} 83... Rb1 {[%clk 0:00:08.8]} 84. Kc3 {[%clk 0:00:33.9]}
84... Ke2 {[%clk 0:00:06.4]} 85. Rh4 {[%clk 0:00:33.4]} 85... Ra1 {[%clk
0:00:06.7]} 86. Rh2+ {[%clk 0:00:33.4]} 86... Ke3 {[%clk 0:00:07.5]} 87. Rh3+
{[%clk 0:00:34.4]} 87... Ke4 {[%clk 0:00:08.8]} 88. Rh4+ {[%clk 0:00:35.5]}
88... Kd5 {[%clk 0:00:10.1]} 89. Rh5+ {[%clk 0:00:35.4]} 89... Kc6 {[%clk
0:00:11.2]} 90. Rh6+ {[%clk 0:00:36.4]} 90... Kb5 {[%clk 0:00:12.6]} 91. Rh5+
{[%clk 0:00:37.4]} 91... Kb6 {[%clk 0:00:13.9]} 92. Rh6+ {[%clk 0:00:34.6]}
92... Kc5 {[%clk 0:00:15.2]} 93. Rh5+ {[%clk 0:00:35.3]} 93... Kd6 {[%clk
0:00:16.4]} 94. Kb4 {[%clk 0:00:35.5]} 94... Ra2 {[%clk 0:00:15.1]} 95. Kc3
{[%clk 0:00:35.1]} 95... Ke6 {[%clk 0:00:14.4]} 96. Rh6+ {[%clk 0:00:35.8]}
96... Kf5 {[%clk 0:00:15.1]} 97. Rh5+ {[%clk 0:00:36.8]} 97... Ke4 {[%clk
0:00:16]} 98. Rh4+ {[%clk 0:00:34.9]} 98... Ke3 {[%clk 0:00:17.2]} 99. Rh3+
{[%clk 0:00:35.9]} 99... Kf2 {[%clk 0:00:18.2]} 100. Rh2+ {[%clk 0:00:37]}
100... Kg3 {[%clk 0:00:19.1]} 101. Rh8 {[%clk 0:00:36.6]} 101... Ra1 {[%clk
0:00:18.2]} 102. Rg8+ {[%clk 0:00:35.5]} 102... Kf4 {[%clk 0:00:18.8]} 103. Rf8+
{[%clk 0:00:36.1]} 103... Kg3 {[%clk 0:00:19.3]} 104. Rg8+ {[%clk 0:00:37]}
104... Kf3 {[%clk 0:00:20.7]} 105. Rf8+ {[%clk 0:00:38.2]} 105... Ke2 {[%clk
0:00:21.6]} 106. Re8+ {[%clk 0:00:39.3]} 106... Kd1 {[%clk 0:00:21.7]} 107. Rd8+
{[%clk 0:00:38.3]} 107... Ke2 {[%clk 0:00:19.4]} 108. Re8+ {[%clk 0:00:39.3]}
108... Kf3 {[%clk 0:00:20.6]} 109. Rf8+ {[%clk 0:00:40.3]} 109... Ke4 {[%clk
0:00:21.7]} 110. Re8+ {[%clk 0:00:41.5]} 110... Kd5 {[%clk 0:00:22.8]} 111. Rd8+
{[%clk 0:00:41.8]} 111... Kc6 {[%clk 0:00:23.4]} 112. Rc8+ {[%clk 0:00:42.8]}
112... Kd7 {[%clk 0:00:23.6]} 113. Rb8 {[%clk 0:00:38.8]} 113... Kc7 {[%clk
0:00:20.1]} 114. Rh8 {[%clk 0:00:39.3]} 114... Re1 {[%clk 0:00:13.2]} 115. Rh4
{[%clk 0:00:37.1]} 115... Ra1 {[%clk 0:00:12.8]} 116. Rh7+ {[%clk 0:00:37]}
116... Kc6 {[%clk 0:00:13.8]} 117. Rh6+ {[%clk 0:00:38.2]} 117... Kc5 {[%clk
0:00:14.6]} 118. Rh5+ {[%clk 0:00:39.4]} 118... Kb6 {[%clk 0:00:15.8]} 119. Kb4
{[%clk 0:00:39.7]} 119... Ra2 {[%clk 0:00:15.8]} 120. Kc3 {[%clk 0:00:40.7]}
120... Kc6 {[%clk 0:00:15.6]} 121. Rh6+ {[%clk 0:00:40.8]} 121... Kb5 {[%clk
0:00:16]} 122. Rh5+ {[%clk 0:00:41.8]} 122... Kb6 {[%clk 0:00:17.3]} 123. Rh6+
{[%clk 0:00:42.9]} 123... Kb5 {[%clk 0:00:18.6]} 124. Rh5+ {[%clk 0:00:43.8]}
124... Kb6 {[%clk 0:00:18.9]} 1/2-1/2

[Event "*** Titled Tuesday 3|2 Blitz (Early)"]
[Site "Chess.com"]
[Date "2016.12.06"]
[Round "6"]
[White "Dlugy"]
[Black "E-Shaposhnikov"]
[Result "1/2-1/2"]
[WhiteElo "2636"]
[BlackElo "2730"]
[TimeControl "180+2"]
[EndTime "12:11:32 PST"]
[Termination "Game drawn by agreement"]

1. d4 {[%clk 0:03:02]} 1... Nf6 {[%clk 0:03:00.4]} 2. Bf4 {[%clk 0:03:02.9]}
2... b6 {[%clk 0:02:57.5]} 3. e3 {[%clk 0:03:03.9]} 3... Bb7 {[%clk 0:02:58.9]}
4. Nf3 {[%clk 0:03:05.1]} 4... e6 {[%clk 0:02:59.1]} 5. h3 {[%clk 0:03:06.1]}
5... g6 {[%clk 0:02:59.1]} 6. Be2 {[%clk 0:03:03.3]} 6... Bg7 {[%clk 0:03:00.6]}
7. O-O {[%clk 0:03:04.9]} 7... O-O {[%clk 0:03:00.6]} 8. c4 {[%clk 0:03:05.6]}
8... d6 {[%clk 0:03:00.4]} 9. Nc3 {[%clk 0:03:06.7]} 9... Nbd7 {[%clk
0:02:57.2]} 10. Qc2 {[%clk 0:03:07.4]} 10... a6 {[%clk 0:02:58.2]} 11. Rad1
{[%clk 0:03:05.8]} 11... Qe7 {[%clk 0:02:57.5]} 12. Bh2 {[%clk 0:02:58.1]} 12...
h6 {[%clk 0:02:53.6]} 13. b4 {[%clk 0:02:58.2]} 1/2-1/2

[Event "*** Titled Tuesday 3|2 Blitz (Early)"]
[Site "Chess.com"]
[Date "2016.12.06"]
[Round "6"]
[White "Harbuzi01"]
[Black "VitaliyBernadskiy"]
[Result "1/2-1/2"]
[WhiteElo "2694"]
[BlackElo "2585"]
[TimeControl "180+2"]
[EndTime "12:12:45 PST"]
[Termination "Game drawn by agreement"]

1. d4 {[%clk 0:03:02]} 1... Nf6 {[%clk 0:03:00.5]} 2. Nf3 {[%clk 0:03:02.9]}
2... g6 {[%clk 0:03:01.2]} 3. Bg5 {[%clk 0:03:02.4]} 3... Bg7 {[%clk 0:03:02.2]}
4. c3 {[%clk 0:03:01.7]} 4... O-O {[%clk 0:03:03]} 5. Nbd2 {[%clk 0:03:01.4]}
5... d6 {[%clk 0:03:03.6]} 6. Bxf6 {[%clk 0:03:02.3]} 6... Bxf6 {[%clk
0:03:04.4]} 7. e3 {[%clk 0:03:03.4]} 7... Bg7 {[%clk 0:03:03.9]} 8. Bd3 {[%clk
0:03:03]} 8... e5 {[%clk 0:03:03.1]} 9. O-O {[%clk 0:03:01.8]} 9... Nc6 {[%clk
0:02:58.9]} 10. h3 {[%clk 0:03:02.5]} 10... Bd7 {[%clk 0:02:48.2]} 11. Qb3
{[%clk 0:02:59.7]} 11... Rb8 {[%clk 0:02:43.8]} 12. Qa3 {[%clk 0:02:58]} 12...
a6 {[%clk 0:02:42.5]} 13. b4 {[%clk 0:02:55.2]} 13... f5 {[%clk 0:02:40.1]} 14.
dxe5 {[%clk 0:02:52.3]} 14... dxe5 {[%clk 0:02:37.2]} 15. e4 {[%clk 0:02:48.5]}
15... f4 {[%clk 0:02:38.4]} 16. Bc4+ {[%clk 0:02:46.4]} 16... Kh8 {[%clk
0:02:39]} 17. Rfd1 {[%clk 0:02:47.3]} 17... Qe7 {[%clk 0:02:34.3]} 18. Qb2
{[%clk 0:02:40.8]} 1/2-1/2